bitfinex-derivatives/quotes_SOLF0:USTF0_20241120
["timestamp","ask_amount","ask_price","bid_price","bid_amount"]
[1732088050377,2.1192,235.71,235.68,6.65297108]
[1732088050576,2.1,235.7,235.68,6.65297108]
[1732088051570,2.17269779,235.8,235.68,6.65297108]
[1732088051770,2.1,235.79,235.74,6.65297108]
[1732088051978,2.1187,235.77,235.74,6.65297108]
[1732088052879,2.1,235.79,235.74,6.65297108]
[1732088054377,2.1187,235.77,235.74,6.65297108]
[1732088054781,2.1,235.79,235.74,6.65297108]
[1732088054978,1.1868,235.81,235.76,6.65297108]
[1732088054979,2.1186,235.78,235.76,6.65297108]
[1732088055279,2.1,235.78,235.76,6.65297108]
[1732088055981,2.1,235.79,235.76,6.65297108]
[1732088056177,2.1,235.79,235.64,2.5251]
[1732088056178,2.1,235.79,235.78,6.65297108]
[1732088058682,2.1187,235.77,235.73,6.65297108]
[1732088058881,2.1,235.79,235.75,6.65297108]
[1732088059277,2.1186,235.78,235.75,6.65297108]
[1732088059476,2.1,235.79,235.75,6.65297108]
[1732088060078,2.1187,235.77,235.75,6.65297108]
[1732088063377,2.1,235.79,235.75,6.65297108]
[1732088064283,2.1,235.79,235.77,6.65297108]
[1732088065176,4.2185,235.79,235.77,6.65297108]
[1732088068585,4.2185,235.79,235.75,6.65297108]
[1732088068586,2.1187,235.76,235.75,6.65297108]
[1732088070080,2.1,235.79,235.75,6.65297108]
[1732088070286,2.1187,235.77,235.75,6.65297108]
[1732088080397,2.1,235.79,235.67,4.75966058]
[1732088080589,2.1,235.79,235.7,6.65297108]
[1732088080793,3.3359,235.79,235.7,6.65297108]
[1732088080993,2.1192,235.72,235.7,6.65297108]
[1732088081292,2.1,235.71,235.7,6.65297108]
[1732088082993,4.2192,235.71,235.7,6.65297108]
[1732088084098,4.2192,235.71,235.66,2.1196]
[1732088084298,4.2192,235.71,235.69,6.65297108]
[1732088087795,2.1193,235.7,235.65,2.1197]
[1732088087997,2.1,235.71,235.68,6.65297108]
[1732088088397,2.1194,235.69,235.68,6.65297108]
[1732088089799,1.2359,235.79,235.68,6.65297108]
[1732088089995,9.19477108,235.84,235.69,1.65110253]
[1732088090198,9.19477108,235.84,235.76,6.65297108]
[1732088090199,2.1,235.79,235.76,6.65297108]
[1732088090501,2.1188,235.76,235.74,6.65297108]
[1732088090800,2.1,235.76,235.74,6.65297108]
[1732088091100,2.1,235.76,235.75,4.74198887]
[1732088091695,2.1,235.76,235.75,1.82369966]
[1732088093301,2.1,235.76,235.71,6.65297108]
[1732088093503,2.1,235.76,235.72,4.66319931]
[1732088093704,2.1,235.76,235.73,11.31602834]
[1732088094002,2.1,235.76,235.74,1.79339835]
[1732088094202,2.1,235.76,235.73,6.65297108]
[1732088100208,2.1,235.76,235.71,2.1192]
[1732088100410,2.1,235.76,235.73,6.65297108]
[1732088100906,2.1,235.76,235.75,6.65297108]
[1732088101106,2.1,235.76,235.75,8.77177108]
[1732088102007,2.1,235.76,235.75,6.65297108]
[1732088103110,2.1,235.77,235.66,5.40414419]
[1732088103313,2.1,235.77,235.71,2.1191]
[1732088103506,2.1,235.77,235.72,1.68085489]
[1732088103706,4.2187,235.77,235.7,6.65297108]
[1732088103907,4.2187,235.77,235.71,1.68126066]
[1732088104208,2.1,235.77,235.72,3.80036066]
[1732088104407,2.1,235.77,235.72,6.65297108]
[1732088104599,2.1,235.77,235.73,6.65297108]
[1732088105609,2.1,235.77,235.75,6.65297108]
[1732088105805,2.1,235.77,235.76,3.79892777]
[1732088106005,2.1,235.8,235.76,1.68022777]
[1732088106214,2.1,235.8,235.79,6.65297108]
[1732088106409,0.15924,235.89,235.79,6.65297108]
[1732088106605,2.1,235.88,235.84,6.65297108]
[1732088107314,2.1,235.87,235.84,6.65297108]
[1732088107912,2.1,235.87,235.84,8.77097108]
[1732088111117,2.1,235.87,235.86,6.65297108]
[1732088111318,2.1,235.87,235.86,8.77077108]
[1732088113433,4.18934412,235.92,235.86,6.65297108]
[1732088113727,2.08,235.91,235.9,6.65297108]
[1732088113929,2.15955166,235.96,235.9,6.65297108]
[1732088114229,2.15955166,235.96,235.95,6.65297108]
[1732088114230,2.08,235.96,235.95,6.65297108]
[1732088116528,8.81188148,236.02,235.95,6.65297108]
[1732088116833,2.08,236.0,235.99,6.65297108]
[1732088117335,2.116,236.07,235.99,6.65297108]
[1732088117523,2.08,236.06,236.02,6.65297108]
[1732088117725,2.08,236.05,236.02,6.65297108]
[1732088119027,2.08,236.06,236.02,8.76937108]
[1732088119336,2.08,236.05,236.04,6.65297108]
[1732088120436,2.08,236.05,236.03,2.1163]
[1732088121333,2.08,236.05,236.02,6.65297108]
[1732088121536,2.08,236.05,236.0,8.76947108]
[1732088122128,2.08,236.05,236.02,6.65297108]
[1732088125537,2.08,236.05,236.02,8.76937108]
[1732088125733,2.08,236.05,236.04,6.65297108]
[1732088127636,2.08,236.05,236.03,2.1162]
[1732088130732,2.08,236.05,236.04,2.1162]
[1732088131637,2.08,236.05,236.04,8.76917108]
[1732088132033,2.12519397,236.1,236.04,6.65297108]
[1732088132342,2.08,236.09,236.05,2.1161]
[1732088132542,2.08,236.08,236.06,6.65297108]
[1732088132744,2.08,236.09,236.06,8.76897108]
[1732088133343,2.08,236.09,236.07,2.1159]
[1732088133641,2.08,236.13,236.08,6.65297108]
[1732088134235,2.08,236.12,236.08,6.65297108]
[1732088134437,2.08,236.12,236.1,6.65297108]
[1732088136143,2.08,236.12,236.1,8.76867108]
[1732088138740,2.08,236.12,236.1,6.65297108]
[1732088140649,2.08,236.12,236.01,3.3144076]
[1732088140846,2.08,236.12,236.08,6.65297108]
[1732088141441,4.1956,236.12,236.08,6.65297108]
[1732088143253,2.08,236.12,236.08,6.65297108]
[1732088143546,2.08,236.12,236.08,8.76877108]
[1732088144950,2.08,236.12,236.1,6.65297108]
[1732088146246,6.65297108,236.19,236.1,6.65297108]
[1732088146444,2.08,236.18,236.1,6.65297108]
[1732088146647,2.08,236.18,236.11,1.65284668]
[1732088146845,2.1151,236.17,236.12,8.76847108]
[1732088147352,2.08,236.18,236.12,8.76847108]
[1732088147553,4.24272894,236.18,236.12,8.76847108]
[1732088147852,2.08,236.18,236.12,8.76847108]
[1732088148249,2.1152,236.16,236.12,8.76847108]
[1732088148454,2.1152,236.16,236.12,6.65297108]
[1732088149251,2.1152,236.16,236.13,1.65638878]
[1732088149446,2.1152,236.16,236.12,6.65297108]
[1732088149847,2.1152,236.16,236.13,1.65663472]
[1732088150056,2.08,236.15,236.14,1.65840676]
[1732088150452,0.60622,236.24,236.17,2.1151]
[1732088150755,2.08,236.22,236.2,6.65297108]
[1732088151455,2.10188657,236.21,236.2,6.65297108]
[1732088151656,0.60622,236.24,236.2,6.65297108]
[1732088151956,2.08,236.23,236.2,6.65297108]
[1732088152158,2.08,236.23,236.11,2.27727736]
[1732088152346,2.08,236.23,236.16,6.65297108]
[1732088152552,2.08,236.23,236.1,2.27727736]
[1732088152553,2.08,236.23,236.18,6.65297108]
[1732088152753,2.11352962,236.22,236.18,6.65297108]
[1732088152956,2.1148,236.2,236.18,6.65297108]
[1732088153554,2.1148,236.2,236.19,1.65935278]
[1732088154459,2.1149,236.19,236.18,6.65297108]
[1732088154655,2.1149,236.19,236.18,8.31294854]
[1732088155761,2.1149,236.19,236.18,6.65297108]
[1732088156062,6.65297108,236.38,236.18,21.65018093]
[1732088156254,2.08,236.37,236.19,12.91720985]
[1732088156460,2.1137,236.33,236.28,6.65297108]
[1732088156756,2.08,236.36,236.28,6.65297108]
[1732088156953,5.41504385,236.36,236.28,6.65297108]
[1732088157155,2.1137,236.33,236.28,6.65297108]
[1732088157356,2.14150042,236.33,236.28,6.65297108]
[1732088157555,3.3,236.36,236.19,1.2915]
[1732088157756,6.65297108,236.31,236.22,6.65297108]
[1732088157960,6.65297108,236.29,236.23,1.63189927]
[1732088158158,2.08,236.28,236.24,1.63189927]
[1732088158360,2.1142,236.27,236.22,6.65297108]
[1732088158661,2.1142,236.27,236.23,1.63291096]
[1732088158955,2.1142,236.27,236.24,1.63291096]
[1732088159160,2.1142,236.27,236.22,6.65297108]
[1732088159359,2.1142,236.27,236.23,1.63303456]
[1732088159564,2.1142,236.27,236.22,6.65297108]
[1732088159761,2.1142,236.27,236.23,1.63308399]
[1732088159961,2.1142,236.27,236.22,6.65297108]
[1732088160261,2.1142,236.27,236.23,1.63352226]
[1732088160461,2.1142,236.27,236.24,1.63352226]
[1732088160664,2.1142,236.27,236.22,6.65297108]
[1732088160960,2.1142,236.27,236.23,1.63387315]
[1732088161159,2.1142,236.27,236.24,1.63387315]
[1732088161364,2.1142,236.27,236.22,6.65297108]
[1732088161660,1.0,236.32,236.23,1.63446204]
[1732088161959,2.1139,236.3,236.25,6.65297108]
[1732088162559,2.114,236.29,236.15,1.1978]
[1732088162760,6.65297108,236.26,236.16,12.7973557]
[1732088162961,2.08,236.25,236.17,1.63324082]
[1732088163159,2.16478014,236.24,236.18,1.63324082]
[1732088163361,2.1147,236.21,236.16,6.65297108]
[1732088163557,2.08,236.2,236.16,6.65297108]
[1732088163757,2.08,236.2,236.09,1.2406]
[1732088163958,2.08,236.2,236.1,7.47655612]
[1732088164259,2.08,236.2,236.13,6.65297108]
[1732088164458,2.1151,236.17,236.13,6.65297108]
[1732088164863,2.08,236.2,236.13,6.65297108]
[1732088166066,2.08,236.19,236.13,6.65297108]
[1732088166267,6.65297108,236.23,236.13,6.65297108]
[1732088166268,4.195,236.18,236.13,6.65297108]
[1732088166967,2.08,236.18,236.17,6.65297108]
[1732088167370,2.08,236.18,236.16,6.65297108]
[1732088168368,4.195,236.18,236.16,6.65297108]
[1732088169070,2.08,236.18,236.16,6.65297108]
[1732088170463,2.08,236.18,236.17,2.1151]
[1732088170666,2.08,236.22,236.16,6.65297108]
[1732088170871,2.08,236.22,236.21,6.65297108]
[1732088171166,6.65297108,236.3,236.21,6.65297108]
[1732088171366,2.08,236.27,236.23,6.65297108]
[1732088172173,2.1143,236.26,236.23,6.65297108]
[1732088173475,4.1942,236.27,236.23,6.65297108]
[1732088174771,2.08,236.27,236.23,6.65297108]
[1732088174977,2.08,236.27,236.23,8.76747108]
[1732088175673,2.08,236.27,236.23,6.65297108]
[1732088176072,2.08,236.27,236.25,6.65297108]
[1732088179383,4.1942,236.27,236.25,6.65297108]
[1732088179684,4.1942,236.27,236.22,6.65297108]
[1732088179685,2.08,236.27,236.22,6.65297108]
[1732088180688,2.1144,236.25,236.22,6.65297108]
[1732088180879,2.08,236.27,236.22,6.65297108]
[1732088182383,2.1143,236.26,236.22,6.65297108]
[1732088183285,2.08,236.27,236.2,2.1148]
[1732088183586,2.1144,236.25,236.22,6.65297108]
[1732088185383,2.1144,236.25,236.14,1.1797]
[1732088185384,6.65297108,236.26,236.14,1.1797]
[1732088185589,2.08,236.27,236.21,6.65297108]
[1732088185789,2.08,236.27,236.23,6.65297108]
[1732088185989,2.1143,236.26,236.23,6.65297108]
[1732088186286,1.0,236.28,236.23,6.65297108]
[1732088186489,2.08,236.25,236.23,6.65297108]
[1732088188287,4.1944,236.25,236.23,6.65297108]
[1732088191891,4.1944,236.25,236.21,6.65297108]
[1732088194994,2.1147,236.22,236.14,1.1797]
[1732088195291,2.08,236.25,236.18,6.65297108]
[1732088195497,2.1146,236.23,236.18,8.76797108]
[1732088195692,2.08,236.25,236.18,6.65297108]
[1732088195894,8.73297108,236.25,236.14,1.1797]
[1732088196099,6.65297108,236.23,236.06,30.51761228]
[1732088196299,6.65297108,236.23,236.14,6.65297108]
[1732088197495,2.115,236.19,236.14,6.65297108]
[1732088197691,4.24263564,236.18,236.14,6.65297108]
[1732088198601,4.24263564,236.18,236.16,6.65297108]
[1732088198999,2.08,236.17,236.16,6.65297108]
[1732088201401,2.08,236.17,236.16,8.76817108]
[1732088203306,2.08,236.17,236.16,6.65297108]
[1732088204703,2.08,236.17,236.06,30.51761228]
[1732088204900,2.1153,236.15,236.1,4.16475574]
[1732088205101,8.73297108,236.17,236.11,1.60170423]
[1732088205304,8.73297108,236.17,236.06,37.17058336]
[1732088205305,6.65297108,236.14,236.06,37.17058336]
[1732088205704,2.1157,236.1,236.06,37.17058336]
[1732088205909,2.08,236.09,236.06,37.17058336]
[1732088206311,4.1959,236.09,236.06,30.51761228]
[1732088207805,2.1159,236.08,236.06,30.51761228]
[1732088209906,2.08,236.09,236.06,30.51761228]
[1732088210513,2.08,236.09,236.06,37.17058336]
[1732088212911,3.43597779,236.2,236.08,6.65297108]
[1732088213111,2.1153,236.15,236.08,6.65297108]
[1732088213312,2.1153,236.15,236.1,6.65297108]
[1732088215408,2.08,236.14,236.1,8.76867108]
[1732088215809,2.08,236.14,236.1,6.65297108]
[1732088217113,6.65297108,236.18,236.12,6.65297108]
[1732088217114,2.115,236.18,236.12,6.65297108]
[1732088217306,2.08,236.17,236.14,6.65297108]
[1732088217505,2.08,236.16,236.14,6.65297108]
[1732088218010,2.08,236.16,236.15,2.1152]
[1732088218409,2.08,236.17,236.15,2.1152]
[1732088218715,2.08,236.17,236.16,6.65297108]
[1732088219505,2.08,236.17,236.16,8.76817108]
[1732088220709,2.08,236.17,236.14,6.65297108]
[1732088220910,2.08,236.17,236.07,3.6831]
[1732088221114,2.08,236.17,236.11,6.65297108]
[1732088221315,2.08,236.17,236.07,3.6831]
[1732088221316,2.1153,236.15,236.09,2.1157]
[1732088221515,2.08,236.17,236.09,8.76867108]
[1732088221718,2.08,236.17,236.09,6.65297108]
[1732088222411,6.65297108,236.14,236.06,30.51761228]
[1732088222611,2.08,236.17,236.06,30.51761228]
[1732088222612,4.606,236.17,236.06,30.51761228]
[1732088223517,4.606,236.17,236.02,10.33144629]
[1732088223714,1.0,236.16,236.02,10.33144629]
[1732088223919,2.1155,236.12,236.04,2.1162]
[1732088224121,2.08,236.11,236.04,2.1162]
[1732088224320,2.08,236.1,236.04,2.1162]
[1732088224614,2.08,236.09,236.02,10.33144629]
[1732088224823,2.08,236.08,236.03,2.1163]
[1732088225212,2.08,236.08,236.04,2.1162]
[1732088227119,2.08,236.08,236.02,10.33144629]
[1732088227321,2.08,236.08,236.06,2.116]
[1732088231625,2.08,236.08,236.02,10.33144629]
[1732088231626,2.08,236.08,236.04,2.1161]
[1732088234626,2.08,236.08,235.99,10.33144629]
[1732088235223,2.08,236.08,236.02,10.33144629]
[1732088235417,2.08,236.08,236.03,2.1162]
[1732088235621,2.08,236.08,236.02,10.33144629]
[1732088236217,2.08,236.08,236.04,2.1162]
[1732088236826,4.1959,236.08,236.04,2.1162]
[1732088237227,2.08,236.08,236.04,2.1162]
[1732088238928,2.08,236.08,236.05,2.1161]
[1732088239329,2.08,236.08,235.93,2.61133901]
[1732088239526,1.296,236.07,235.94,1.59993329]
[1732088239726,2.296,236.07,235.95,1.59993329]
[1732088239925,2.296,236.07,235.93,12.9427853]
[1732088240127,2.296,236.07,235.96,10.33144629]
[1732088240128,2.08,236.06,235.96,10.33144629]
[1732088240729,2.296,236.07,236.0,2.1166]
[1732088240923,2.08,236.06,236.0,2.1166]
[1732088241628,1.0,236.07,235.99,10.33144629]
[1732088241829,1.1928,236.17,236.02,10.33144629]
[1732088241830,1.2452,236.16,236.02,10.33144629]
[1732088242030,2.08,236.15,236.02,10.33144629]
[1732088242232,2.08,236.15,236.06,2.116]
[1732088242431,2.08,236.15,236.02,10.33144629]
[1732088242632,6.6120939,236.14,236.05,6.6120939]
[1732088242830,2.08,236.13,236.05,6.6120939]
[1732088243429,2.1158,236.09,236.05,6.6120939]
[1732088243633,2.08,236.08,236.05,6.6120939]
[1732088244733,4.1959,236.08,236.02,2.1164]
[1732088244936,4.1959,236.08,236.05,6.6120939]
[1732088245331,4.1959,236.08,236.03,6.6120939]
[1732088246535,4.1959,236.08,236.03,8.7283939]
[1732088247032,2.08,236.08,236.03,6.6120939]
[1732088247239,2.116,236.07,236.03,6.6120939]
[1732088247438,2.116,236.07,236.02,2.1164]
[1732088247439,2.08,236.08,235.98,2.408]
[1732088247638,2.08,236.08,236.03,6.6120939]
[1732088247933,2.08,236.08,236.05,6.6120939]
[1732088248340,1.2452,236.16,236.07,6.6120939]
[1732088248536,1.2452,236.16,236.1,6.6120939]
[1732088248741,2.08,236.15,236.1,6.6120939]
[1732088248936,2.08,236.15,236.05,2.1161]
[1732088249141,2.08,236.15,236.06,6.6120939]
[1732088249443,2.08,236.15,236.08,6.6120939]
[1732088249632,2.1153,236.14,236.09,2.1158]
[1732088251037,2.08,236.15,236.1,2.1157]
[1732088252035,2.08,236.14,236.09,2.1158]
[1732088252242,2.08,236.13,236.08,1.1832]
[1732088252437,2.08,236.12,236.08,1.1832]
[1732088252639,2.1152,236.16,236.1,2.1156]
[1732088252940,2.1152,236.16,236.08,1.1832]
[1732088252941,2.08,236.15,236.08,1.1832]
[1732088254338,2.08,236.15,236.11,2.1156]
[1732088255135,2.1149,236.2,236.13,2.1154]
[1732088255340,2.08,236.19,236.13,2.1154]
[1732088255546,2.08,236.18,236.13,2.1154]
[1732088255746,2.08,236.18,236.1,10.32897938]
[1732088256047,2.08,236.18,236.08,1.1832]
[1732088256640,2.1154,236.14,236.09,2.1158]
[1732088256844,2.08,236.13,236.09,2.1158]
[1732088257048,2.1153,236.15,236.09,2.1157]
[1732088257250,2.08,236.12,236.06,1.2139]
[1732088257445,2.08,236.11,236.05,1.2474]
[1732088257641,2.08,236.1,236.05,1.2474]
[1732088257849,2.08,236.09,236.04,10.32897938]
[1732088258147,2.08,236.09,236.05,1.6013958]
[1732088258345,2.08,236.09,236.05,2.1161]
[1732088258545,2.08,236.09,236.04,10.32897938]
[1732088258847,2.08,236.09,236.01,11.63047938]
[1732088259050,2.08,236.09,236.06,2.116]
[1732088262358,2.08,236.09,236.01,11.63047938]
[1732088262958,2.08,236.09,236.02,1.58372102]
[1732088263157,2.08,236.09,236.03,1.58372102]
[1732088263357,2.08,236.09,236.01,11.63047938]
[1732088263554,2.08,236.09,236.02,1.58441165]
[1732088263753,2.08,236.09,236.03,1.58441165]
[1732088263957,2.08,236.09,236.01,11.63047938]
[1732088264153,2.08,236.09,236.06,2.116]
[1732088266155,2.08,236.09,235.88,5.86044822]
[1732088266361,2.08,236.09,235.99,10.32897938]
[1732088266559,2.08,236.09,236.0,1.58516676]
[1732088266760,2.08,236.09,236.01,1.58516676]
[1732088266963,2.08,236.09,235.99,10.32897938]
[1732088267155,2.08,236.09,236.0,1.58579862]
[1732088267361,2.08,236.09,236.01,1.58579862]
[1732088267559,2.08,236.09,235.99,10.32897938]
[1732088267756,2.08,236.09,236.0,1.58587095]
[1732088267960,2.08,236.09,236.01,1.58587095]
[1732088268160,2.08,236.09,235.99,10.32897938]
[1732088268461,2.116,236.07,236.02,2.1164]
[1732088268656,2.08,236.09,235.99,10.32897938]
[1732088268859,2.08,236.08,236.0,4.12338779]
[1732088269053,2.08,236.08,236.01,1.58592757]
[1732088269260,2.08,236.08,236.02,1.58592757]
[1732088269460,2.08,236.08,236.03,2.1163]
[1732088269865,1.1824,236.15,236.02,10.32897938]
[1732088270166,2.4391,236.16,236.05,10.32897938]
[1732088270167,2.08,236.14,236.05,10.32897938]
[1732088270361,2.08,236.14,236.06,1.58526589]
[1732088270562,2.08,236.14,236.05,10.32897938]
[1732088270763,2.08,236.14,236.1,2.1157]
[1732088272468,4.5543,236.16,236.1,2.1157]
[1732088272664,2.08,236.13,236.1,8.72506487]
[1732088276868,2.08,236.13,236.12,6.60936487]
[1732088278370,2.08,236.13,236.12,8.72486487]
[1732088285772,2.1148,236.2,236.15,2.1152]
[1732088285973,2.08,236.19,236.18,6.60936487]
[1732088286374,2.4514,236.23,236.18,6.60936487]
[1732088286777,2.08,236.22,236.18,6.60936487]
[1732088287272,4.1946,236.22,236.18,6.60936487]
[1732088288274,4.1946,236.22,236.17,2.1151]
[1732088288580,4.1946,236.22,236.16,6.60936487]
[1732088288581,2.1147,236.21,236.16,6.60936487]
[1732088290283,30.46,236.25,236.18,6.60936487]
[1732088290483,2.08,236.24,236.18,6.60936487]
[1732088291285,2.1146,236.22,236.18,6.60936487]
[1732088291480,2.08,236.24,236.19,6.60936487]
[1732088291879,4.1945,236.24,236.19,8.72416487]
[1732088292384,2.08,236.23,236.19,8.72416487]
[1732088293086,2.08,236.22,236.19,8.72416487]
[1732088293584,2.1145,236.24,236.19,8.72416487]
[1732088293585,2.08,236.21,236.19,8.72416487]
[1732088294384,2.08,236.21,236.19,6.60936487]
[1732088295079,4.1947,236.21,236.17,6.60936487]
[1732088296381,30.46,236.25,236.19,6.60936487]
[1732088296592,2.08,236.24,236.19,6.60936487]
[1732088297088,2.08,236.24,236.21,6.60936487]
[1732088297385,2.08,236.23,236.21,6.60936487]
[1732088297978,2.08,236.23,236.21,8.72396487]
[1732088298178,2.08,236.23,236.21,6.60936487]
[1732088299189,2.08,236.23,236.22,2.1146]
[1732088301181,2.08,236.23,236.12,2.52909331]
[1732088301486,2.08,236.23,236.21,6.60936487]
[1732088303084,6.60936487,236.29,236.21,6.60936487]
[1732088303288,2.1142,236.27,236.22,2.1146]
[1732088303685,2.1142,236.27,236.21,6.60936487]
[1732088304288,2.1143,236.26,236.21,8.72406487]
[1732088304889,2.1143,236.26,236.21,2.1147]
[1732088305090,2.1143,236.26,236.22,6.60936487]
[1732088305896,2.1143,236.26,236.21,2.1147]
[1732088306084,9.01436487,236.3,236.22,6.60936487]
[1732088306085,2.405,236.3,236.22,6.60936487]
[1732088306390,2.1142,236.27,236.22,8.72396487]
[1732088307888,6.60936487,236.27,236.18,6.60936487]
[1732088308087,6.60936487,236.27,236.2,6.60936487]
[1732088308897,6.60936487,236.27,236.11,1.2075]
[1732088309090,6.60936487,236.27,236.19,6.60936487]
[1732088309293,2.1145,236.24,236.19,8.72426487]
[1732088309496,2.08,236.23,236.19,8.72426487]
[1732088309693,2.08,236.23,236.19,6.60936487]
[1732088309898,2.08,236.23,236.2,2.1148]
[1732088310199,2.08,236.22,236.2,2.1148]
[1732088310889,2.08,236.22,236.19,6.60936487]
[1732088311800,4.1946,236.22,236.19,6.60936487]
[1732088312400,2.08,236.22,236.19,6.60936487]
[1732088312996,4.1946,236.22,236.19,6.60936487]
[1732088313501,2.1148,236.21,236.11,1.2075]
[1732088313705,2.1148,236.21,236.16,6.60936487]
[1732088314207,2.1148,236.21,236.16,8.72446487]
[1732088314905,2.1148,236.21,236.16,6.60936487]
[1732088315101,2.1149,236.19,236.09,1.2237]
[1732088315306,2.1149,236.19,236.14,6.60936487]
[1732088315900,8.68819901,236.19,236.05,1.1804]
[1732088316106,8.68819901,236.19,236.11,6.60936487]
[1732088316305,8.68819901,236.19,236.0,7.78435363]
[1732088316306,2.1155,236.13,235.91,5.86044822]
[1732088316505,2.08,236.12,236.06,6.60936487]
[1732088317203,2.08,236.12,236.02,4.18424217]
[1732088317204,2.08,236.12,236.04,6.60936487]
[1732088317403,2.1157,236.1,236.04,8.72556487]
[1732088317707,2.08,236.11,236.04,8.72556487]
[1732088318203,4.1956,236.11,236.06,6.60936487]
[1732088319004,2.1157,236.1,236.06,6.60936487]
[1732088319205,2.08,236.11,236.06,6.60936487]
[1732088320505,2.08,236.11,236.04,6.60936487]
[1732088320707,2.08,236.11,236.06,6.60936487]
[1732088321707,4.1958,236.1,236.06,6.60936487]
[1732088321909,2.08,236.1,236.06,6.60936487]
[1732088324014,2.08,236.1,236.05,2.1161]
[1732088327308,2.08,236.1,236.04,6.60936487]
[1732088327511,2.08,236.1,236.06,6.60936487]
[1732088327911,2.08,236.1,236.09,2.1157]
[1732088328318,2.08,236.1,235.99,2.53288734]
[1732088328518,2.08,236.1,236.09,2.1158]
[1732088328719,2.08,236.1,236.09,8.72516487]
[1732088332621,2.08,236.1,236.09,6.60936487]
[1732088333516,2.08,236.1,236.08,2.1158]
[1732088334226,2.08,236.1,236.03,2.1163]
[1732088334419,2.08,236.1,236.01,3.6915]
[1732088334620,2.08,236.1,236.04,6.60936487]
[1732088335021,2.08,236.1,236.05,2.1161]
[1732088335525,2.08,236.1,236.06,6.60936487]
[1732088336428,2.08,236.1,236.06,8.72536487]
[1732088339833,2.08,236.1,236.06,2.116]
[1732088343133,2.08,236.1,236.07,2.116]
[1732088346440,2.08,236.1,236.07,8.72536487]
[1732088346839,2.13829676,236.17,236.11,2.1155]
[1732088347139,2.08,236.16,236.11,6.60936487]
[1732088348137,2.08,236.16,236.11,8.72486487]
[1732088350043,2.1153,236.14,236.01,3.6915]
[1732088350243,8.68936487,236.16,236.02,4.11824927]
[1732088350443,8.68936487,236.16,236.08,6.60936487]
[1732088351146,2.1154,236.14,236.08,6.60936487]
[1732088353347,2.1154,236.14,236.09,2.1158]
[1732088355746,2.08,236.13,236.12,8.72486487]
[1732088358449,2.08,236.15,236.12,6.60936487]
[1732088358645,2.08,236.15,236.14,6.60936487]
[1732088359046,2.08,236.15,236.14,8.72466487]
[1732088359351,2.08,236.15,236.14,10.31279144]
[1732088359556,2.08,236.15,236.14,8.72466487]
[1732088359750,2.08,236.15,236.14,10.31280012]
[1732088360350,6.60936487,236.25,236.14,8.19750012]
[1732088360553,2.08,236.22,236.18,8.72436487]
[1732088361246,2.08,236.21,236.2,6.60936487]
[1732088361852,2.08,236.21,236.2,8.72416487]
[1732088362758,2.08,236.22,236.21,2.1147]
[1732088363058,2.08,236.22,236.21,8.72406487]
[1732088367663,2.08,236.22,236.21,6.60936487]
[1732088368262,2.08,236.22,236.18,6.60936487]
[1732088370364,2.08,236.22,236.19,2.1149]
[1732088374567,2.08,236.22,236.21,2.1147]
[1732088375768,2.08,236.22,236.2,6.60936487]
[1732088376062,2.1143,236.26,236.2,6.60936487]
[1732088376267,2.08,236.25,236.2,6.60936487]
[1732088377466,2.08,236.25,236.2,8.72416487]
[1732088379664,4.1943,236.25,236.2,8.72416487]
[1732088380768,2.08,236.25,236.2,8.72416487]
[1732088381365,2.08,236.25,236.21,2.1147]
[1732088381667,2.08,236.25,236.22,6.60936487]
[1732088382371,3.8296,236.29,236.22,6.60936487]
[1732088382669,2.11780251,236.32,236.26,6.60936487]
[1732088382670,2.08,236.28,236.26,6.60936487]